fUST/lending_fUST_20250715
["ID","MTS","AMOUNT","RATE_DAILY","PERIOD"]
[372222567,1752556245280,-904.13,0.00021917,3]
[372222569,1752556245289,-2695.1,0.00021917,3]
[372222571,1752556245298,-460.0,0.00021917,3]
[372222573,1752556245307,-460.0,0.00021917,3]
[372222575,1752556245317,-1570.03,0.00021917,3]
[372222577,1752556245326,-668.35,0.00021917,3]
[372222580,1752556245336,-460.0,0.00021917,3]
[372222582,1752556245345,-460.0,0.00021917,3]
[372222583,1752556245354,-1324.78,0.00021917,3]
[372222585,1752556245364,-460.0,0.00021917,3]
[372222588,1752556245374,-460.0,0.00021917,3]
[372222590,1752556245383,-460.0,0.00021917,3]
[372222592,1752556245392,-556.03,0.00021917,3]
[372222594,1752556245401,-460.0,0.00021917,3]
[372222596,1752556245411,-460.0,0.00021917,3]
[372222597,1752556245420,-1198.76,0.00021917,3]
[372222599,1752556245429,-585.60484571,0.00021917,3]
[372222612,1752556245572,-197.82515429,0.00021917,3]
[372222614,1752556245582,-151.0,0.00021917,2]
[372222616,1752556245591,-1804.22,0.00021917,3]
[372222617,1752556245600,-504.45,0.00021917,3]
[372222619,1752556245609,-460.0,0.00021917,3]
[372222621,1752556245618,-2712.51,0.00021917,3]
[372222623,1752556245627,-69.98466276,0.00021917,3]
[372222651,1752556245948,-236.19725459,0.00020546,2]
[372222653,1752556245958,-164.8148807,0.00020546,2]
[372222654,1752556245967,-438.95039206,0.00020546,2]
[372222656,1752556245977,-500.0,0.00020546,2]
[372222658,1752556245986,-500.0,0.00020546,2]
[372222660,1752556245995,-500.83519768,0.00020546,2]
[372222662,1752556246005,-493.5364603,0.00020546,2]
[372222664,1752556246014,-2241.3,0.00020811,10]
[372222666,1752556246023,-390.01533724,0.00021917,3]
[372222667,1752556246032,-460.0,0.00021917,3]
[372222669,1752556246042,-460.0,0.00021917,3]
[372222671,1752556246052,-460.0,0.00021917,3]
[372222673,1752556246061,-460.0,0.00021917,3]
[372222675,1752556246070,-952.8,0.00021917,3]
[372222677,1752556246079,-589.6,0.00021917,3]
[372222679,1752556246089,-535.61,0.00021917,3]
[372222680,1752556246098,-151.0,0.00021917,2]
[372222682,1752556246107,-2128.29,0.00021917,3]
[372222684,1752556246116,-852.12,0.00021917,3]
[372222686,1752556246126,-460.0,0.00021917,3]
[372222688,1752556246135,-460.0,0.00021917,3]
[372222690,1752556246144,-3492.81,0.00021917,3]
[372222692,1752556246153,-460.0,0.00021917,3]
[372222693,1752556246162,-460.0,0.00021917,3]
[372222695,1752556246172,-719.62,0.00021917,3]
[372222697,1752556246182,-274.37462801,0.00021917,3]
[372222699,1752556246191,-4181.91,0.00021917,3]
[372222701,1752556246200,-220.62705666,0.00021917,3]
[372222703,1752556246210,-563.0,0.00021917,3]
[372222705,1752556246219,-468.57,0.00021917,3]
[372222706,1752556246229,-3966.36,0.00021917,3]
[372222708,1752556246238,-1471.48,0.00021917,3]
[372222710,1752556246247,-460.0,0.00021917,3]
[372222712,1752556246257,-151.0,0.00021918,2]
[372222714,1752556246266,-151.0,0.00021918,2]
[372222716,1752556246275,-151.0,0.00021918,2]
[372222717,1752556246284,-179.24149705,0.00021918,2]
[372222719,1752556246294,-7101.59682899,0.00021934,6]
[372222721,1752556246303,-230.0,0.00021935,2]
[372222723,1752556246312,-500.92806724,0.00021973,2]
[372222725,1752556246322,-503.29374088,0.00021973,2]
[372222727,1752556246332,-500.0,0.00021973,2]
[372222729,1752556246341,-500.0,0.00021973,2]
[372222730,1752556246350,-500.0,0.00021973,2]
[372222732,1752556246360,-500.0,0.00021973,2]
[372222734,1752556246369,-501.98032672,0.00021973,2]
[372222736,1752556246379,-500.0,0.00021973,2]
[372222738,1752556246390,-502.02754176,0.00021973,2]
[372222740,1752556246399,-500.0,0.00021973,2]
[372222742,1752556246409,-500.0,0.00021973,2]
[372222744,1752556246418,-500.0,0.00021973,2]
[372222746,1752556246428,-500.0,0.00021973,2]
[372222747,1752556246444,-501.25514528,0.00021973,2]
[372222749,1752556246458,-502.56664836,0.00021973,2]
[372222751,1752556246467,-500.0,0.00021973,2]
[372222753,1752556246477,-588.36461943,0.00021973,2]
[372222755,1752556246486,-500.0,0.00021973,2]
[372222757,1752556246496,-151.0,0.00021973,7]
[372222759,1752556246505,-151.0,0.00021973,7]
[372222761,1752556246515,-151.0,0.00021973,7]
[372222762,1752556246524,-812.37032582,0.00021973,2]
[372222764,1752556246533,-3249.48130328,0.00021973,2]
[372222766,1752556246542,-7304.02159944,0.00021973,2]
[372222768,1752556246551,-435.20370407,0.00022,2]
[372222770,1752556246561,-151.997038,0.00022,7]
[372222772,1752556246571,-17563.10444086,0.00022,2]
[372222774,1752556246587,-40755.1569314,0.00022,2]
[372222776,1752556246598,-1497.69227202,0.00022,2]
[372222809,1752556246946,-460.0,0.00020547,3]
[372222810,1752556246956,-460.0,0.00020821,3]
[372222812,1752556246966,-18999.784375,0.00022,2]
[372226695,1752556503130,2725.0,0.00017,2]
[372226706,1752556565329,160.0,0.00017699,3]
[372226707,1752556565597,159.0,0.00015507,3]
[372226708,1752556565861,310.0,0.00013315,3]
[372226709,1752556594350,500.0,0.00016438,2]
[372226710,1752556803093,2141.72262782,0.00017,2]
[372226711,1752556883551,164.0,0.00014904,3]
[372226712,1752556884343,173.0,0.00012164,3]
[372226714,1752557153883,-168.0,0.00018192,3]
[372226715,1752557153906,-219.19650834,0.00019178,2]
[372226716,1752557153929,-40.57941271,0.00019724,2]
[372226717,1752557200694,162.0,0.00017726,3]
[372226718,1752557201034,191.0,0.00012795,3]
[372226719,1752557235523,-300.0,0.00019724,2]
[372226720,1752557235546,-300.0,0.00019724,2]
[372226721,1752557235570,-514.74765715,0.00019725,2]
[372226722,1752557242082,-1816.02521972,0.00019725,2]
[372226723,1752557251099,-717.97384558,0.00019725,2]
[372226724,1752557252127,-414.0,0.00019725,2]
[372226729,1752557322280,460.0,0.00025242,120]
[372226730,1752557345102,-882.91750346,0.00019178,2]
[372226732,1752557362135,-1017.65046709,0.00019178,2]
[372226733,1752557362157,-187.52977,0.00019225,2]
[372226734,1752557362180,-249.79636291,0.00019724,2]
[372226735,1752557370309,-50.20363709,0.00019724,2]
[372226736,1752557370332,-8983.45174533,0.00019725,2]
[372226737,1752557387132,163.578413,0.00013699,2]
[372226747,1752557432443,-208.57941271,0.00019,2]
[372226748,1752557432453,-300.0,0.00019724,2]
[372226749,1752557432464,-300.0,0.00019724,2]
[372226750,1752557432474,-669.0,0.00019724,2]
[372226751,1752557432484,-8603.40735175,0.00019725,2]
[372226757,1752557432559,-701.35014305,0.00019725,2]
[372226759,1752557432571,-3139.04403742,0.00019725,2]
[372226760,1752557432581,-402.12446732,0.00019817,2]
[372226761,1752557432591,-82.9270647,0.0002,2]
[372226783,1752557438431,-268.08297821,0.000189,2]
[372226784,1752557438441,-1805.1361315,0.0002,2]
[372226785,1752557438614,-2396.41758275,0.0002,2]
[372226786,1752557438625,-161.02,0.00020537,3]
[372226787,1752557438634,-483.06,0.00020537,3]
[372226788,1752557438644,-460.0,0.00020547,3]
[372226789,1752557438654,-460.0,0.00020547,3]
[372226790,1752557438663,-500.0,0.00020547,3]
[372226791,1752557438673,-500.0,0.00020547,3]
[372226792,1752557438683,-500.0,0.00020547,3]
[372226793,1752557438692,-460.0,0.00020547,3]
[372226794,1752557438702,-460.0,0.00020547,3]
[372226795,1752557438711,-460.0,0.00020547,3]
[372226796,1752557438721,-460.0,0.00020547,3]
[372226797,1752557438731,-460.0,0.00020547,3]
[372226798,1752557438740,-460.0,0.00020547,3]
[372226799,1752557438750,-463.40718438,0.00020547,3]
[372226800,1752557438759,-460.0,0.00020547,3]
[372226801,1752557438769,-269.39049778,0.00020547,3]
[372226802,1752557438778,-460.0,0.00020547,3]
[372226803,1752557438788,-460.0,0.00020547,3]
[372226804,1752557438798,-460.0,0.00020547,3]
[372226805,1752557438807,-460.0,0.00020547,3]
[372226806,1752557438817,-451.18432471,0.00020547,3]
[372226807,1752557438827,-460.0,0.00020547,3]
[372226808,1752557438837,-460.0,0.00020547,3]
[372226809,1752557438846,-460.0,0.00020547,3]
[372226810,1752557438856,-460.0,0.00020547,3]
[372226811,1752557438866,-460.0,0.00020547,3]
[372226812,1752557438876,-460.0,0.00020547,3]
[372226813,1752557438885,-460.0,0.00020547,3]
[372226814,1752557438895,-460.0,0.00020547,3]
[372226815,1752557438904,-460.0,0.00020547,3]
[372226816,1752557438914,-460.0,0.00020547,3]
[372226817,1752557438923,-460.0,0.00020547,3]
[372226818,1752557438933,-460.0,0.00020547,3]
[372226819,1752557438943,-460.0,0.00020547,3]
[372226820,1752557438952,-460.0,0.00020547,3]
[372226821,1752557438962,-460.0,0.00020547,3]
[372226822,1752557438973,-460.0,0.00020547,3]
[372226823,1752557438983,-460.0,0.00020547,3]
[372226824,1752557438993,-462.67732135,0.00020547,3]
[372226825,1752557439003,-188.14487007,0.00020547,3]
[372226826,1752557439012,-462.90967607,0.00020547,3]
[372226827,1752557439022,-197.08898015,0.00020547,3]
[372226828,1752557439031,-460.0,0.00020547,3]
[372226829,1752557439040,-460.0,0.00020547,3]
[372226830,1752557439050,-460.0,0.00020547,3]
[372226831,1752557439060,-460.0,0.00020547,3]
[372226832,1752557439069,-460.0,0.00020547,3]
[372226833,1752557439081,-460.0,0.00020547,3]
[372226834,1752557439091,-460.0,0.00020547,3]
[372226835,1752557439101,-432.45527726,0.00020547,3]
[372226836,1752557439111,-460.0,0.00020547,3]
[372226837,1752557439122,-460.0,0.00020547,3]
[372226838,1752557439132,-698.94,0.00020547,3]
[372226839,1752557439142,-460.0,0.00020547,3]
[372226840,1752557439152,-460.0,0.00020547,3]
[372226841,1752557439163,-460.0,0.00020547,3]
[372226842,1752557439172,-500.0,0.00020547,3]
[372226843,1752557439182,-234.57114021,0.00020547,3]
[372226844,1752557439195,-364.62135025,0.00020547,3]
[372226845,1752557439204,-460.0,0.00020547,3]
[372226846,1752557439213,-460.0,0.00020547,3]
[372226847,1752557439224,-460.0,0.00020547,3]
[372226848,1752557439233,-460.0,0.00020547,3]
[372226849,1752557439243,-380.28286135,0.00020547,3]
[372226850,1752557439255,-79.71713865,0.00020547,3]
[372226851,1752557439265,-460.0,0.00020547,3]
[372226852,1752557439275,-460.0,0.00020547,3]
[372226853,1752557439284,-460.0,0.00020547,3]
[372226854,1752557439294,-460.0,0.00020547,3]
[372226855,1752557439304,-460.0,0.00020547,3]
[372226856,1752557439313,-462.21886692,0.00020547,3]
[372226857,1752557439323,-460.0,0.00020547,3]
[372226858,1752557439333,-460.0,0.00020547,3]
[372226859,1752557439343,-460.0,0.00020547,3]
[372226860,1752557439352,-460.0,0.00020547,3]
[372226861,1752557439362,-460.0,0.00020547,3]
[372226862,1752557439371,-469.46399458,0.00020547,3]
[372226863,1752557439383,-70.70600542,0.00020547,3]
[372226864,1752557439392,-460.0,0.00020547,3]
[372226865,1752557439402,-460.0,0.00020547,3]
[372226866,1752557439411,-50.49399458,0.00020547,3]
[372226867,1752557439433,-409.50600542,0.00020547,3]
[372226868,1752557439442,-460.0,0.00020547,3]
[372226869,1752557439452,-460.0,0.00020547,3]
[372226870,1752557439461,-460.0,0.00020547,3]
[372226871,1752557439471,-476.76671964,0.00020547,3]
[372226872,1752557439480,-460.0,0.00020547,3]
[372226873,1752557439490,-259.83,0.00020547,3]
[372226874,1752557439499,-460.0,0.00020547,3]
[372226875,1752557439508,-460.0,0.00020547,3]
[372226876,1752557439517,-464.32616043,0.00020547,3]
[372226877,1752557439527,-463.11174211,0.00020547,3]
[372226878,1752557439536,-460.0,0.00020547,3]
[372226879,1752557439545,-460.0,0.00020547,3]
[372226880,1752557439555,-460.5486287,0.00020547,3]
[372226881,1752557439564,-460.0,0.00020547,3]
[372226882,1752557439573,-460.0,0.00020547,3]
[372226883,1752557439583,-460.0,0.00020547,3]
[372226884,1752557439592,-460.0,0.00020547,3]
[372226885,1752557439602,-460.0,0.00020547,3]
[372226886,1752557439611,-460.0,0.00020547,3]
[372226887,1752557439622,-644.29,0.00020547,3]
[372226888,1752557439631,-460.0,0.00020547,3]
[372226889,1752557439641,-460.0,0.00020547,3]
[372226890,1752557439650,-328.44699189,0.00020547,3]
[372226891,1752557439660,-460.0,0.00020547,3]
[372226892,1752557439670,-518.99,0.00020547,3]
[372226893,1752557439679,-460.0,0.00020547,3]
[372226894,1752557439688,-460.72845538,0.00020547,3]
[372226895,1752557439698,-460.0,0.00020547,3]
[372226896,1752557439708,-460.0,0.00020547,3]
[372226897,1752557439717,-460.0,0.00020547,3]
[372226898,1752557439728,-460.0,0.00020547,3]
[372226899,1752557439738,-460.0,0.00020547,3]
[372226900,1752557439747,-460.0,0.00020547,3]
[372226901,1752557439757,-460.0,0.00020547,3]
[372226902,1752557439766,-230.0,0.00020547,3]
[372226903,1752557439776,-698.47,0.00020547,3]
[372226904,1752557439786,-460.0,0.00020547,3]
[372226905,1752557439795,-1177.51,0.00020547,3]
[372226906,1752557439805,-460.0,0.00020547,3]
[372226907,1752557439815,-2012.44,0.00020547,3]
[372226908,1752557439828,-460.0,0.00020547,3]
[372226909,1752557439838,-460.0,0.00020547,3]
[372226910,1752557439847,-460.0,0.00020547,3]
[372226911,1752557439857,-460.0,0.00020547,3]
[372226912,1752557439866,-460.0,0.00020547,3]
[372226913,1752557439875,-460.0,0.00020547,3]
[372226914,1752557439885,-460.0,0.00020547,3]
[372226915,1752557439894,-460.0,0.00020547,3]
[372226916,1752557439904,-1389.25,0.00020547,3]
[372226917,1752557439914,-462.57664889,0.00020547,3]
[372226918,1752557439923,-460.0,0.00020547,3]
[372226919,1752557439932,-460.0,0.00020547,3]
[372226921,1752557439942,-2902.91,0.00020547,3]
[372226922,1752557439951,-180.35924725,0.00020547,3]
[372226923,1752557439960,-460.0,0.00020547,3]
[372226924,1752557439972,-445.68351494,0.00020547,3]
[372226925,1752557439981,-460.0,0.00020547,3]
[372226926,1752557439990,-460.0,0.00020547,3]
[372226927,1752557440000,-460.0,0.00020547,3]
[372226928,1752557440009,-260.17,0.00020547,3]
[372226929,1752557440019,-460.0,0.00020547,3]
[372226930,1752557440029,-460.0,0.00020547,3]
[372226931,1752557440038,-460.0,0.00020547,3]
[372226932,1752557440047,-460.0,0.00020547,3]
[372226933,1752557440057,-460.0,0.00020547,3]
[372226934,1752557440066,-460.0,0.00020547,3]
[372226935,1752557440081,-1900.9,0.00020547,3]
[372226936,1752557440092,-838.26,0.00020547,3]
[372226937,1752557440102,-460.0,0.00020547,3]
[372226938,1752557440111,-673.92,0.00020547,3]
[372226939,1752557440121,-460.0,0.00020547,3]
[372226940,1752557440130,-460.0,0.00020547,3]
[372226941,1752557440140,-466.13,0.00020547,3]
[372226942,1752557440149,-460.0,0.00020547,3]
[372226943,1752557440160,-2222.62,0.00020547,3]
[372226944,1752557440170,-460.0,0.00020547,3]
[372226945,1752557440179,-460.0,0.00020547,3]
[372226946,1752557440189,-460.0,0.00020547,3]
[372226947,1752557440198,-460.0,0.00020547,3]
[372226948,1752557440207,-460.0,0.00020547,3]
[372226949,1752557440217,-460.0,0.00020547,3]
[372226950,1752557440227,-540.07,0.00020547,3]
[372226951,1752557440236,-560.67,0.00020547,3]
[372226952,1752557440246,-873.4,0.00020547,3]
[372226953,1752557440255,-460.0,0.00020547,3]
[372226954,1752557440264,-487.63,0.00020547,3]
[372226955,1752557440274,-816.62,0.00020547,3]
[372226956,1752557440283,-460.0,0.00020547,3]
[372226957,1752557440292,-214.37129034,0.00020547,3]
[372226958,1752557440301,-460.0,0.00020547,3]
[372226959,1752557440311,-460.0,0.00020547,3]
[372226960,1752557440321,-2620.63,0.00020547,3]
[372226961,1752557440330,-460.0,0.00020547,3]
[372226962,1752557440340,-460.0,0.00020547,3]
[372226963,1752557440350,-460.0,0.00020547,3]
[372226964,1752557440359,-460.0,0.00020547,3]
[372226965,1752557440369,-460.0,0.00020547,3]
[372226966,1752557440378,-460.0,0.00020547,3]
[372226968,1752557440387,-1536.82,0.00020547,3]
[372226969,1752557440397,-460.0,0.00020547,3]
[372226970,1752557440407,-460.0,0.00020547,3]
[372226971,1752557440418,-460.0,0.00020547,3]
[372226972,1752557440428,-471.93943244,0.00020547,3]
[372226973,1752557440438,-461.41627627,0.00020547,3]
[372226975,1752557440447,-460.0,0.00020547,3]
[372226977,1752557440457,-460.0,0.00020547,3]
[372226979,1752557440467,-460.0,0.00020547,3]
[372226981,1752557440476,-460.0,0.00020547,3]
[372226983,1752557440486,-309.16279678,0.00020547,3]
[372226985,1752557440496,-460.0,0.00020547,3]
[372226987,1752557440506,-460.0,0.00020547,3]
[372226989,1752557440515,-460.0,0.00020547,3]
[372226991,1752557440524,-460.0,0.00020547,3]
[372226993,1752557440534,-460.0,0.00020547,3]
[372226995,1752557440543,-464.15773791,0.00020547,3]
[372226997,1752557440553,-565.33951189,0.00020547,3]
[372226999,1752557440562,-460.0,0.00020547,3]
[372227001,1752557440571,-4493.21,0.00020547,3]
[372227003,1752557440581,-472.48,0.00020547,3]
[372227005,1752557440591,-986.63,0.00020547,3]
[372227007,1752557440601,-1262.48,0.00020547,3]
[372227009,1752557440610,-460.0,0.00020547,3]
[372227011,1752557440620,-487.74,0.00020547,3]
[372227013,1752557440629,-500.0,0.00020547,3]
[372227015,1752557440639,-521.6,0.00020547,3]
[372227017,1752557440648,-460.0,0.00020547,3]
[372227019,1752557440658,-460.0,0.00020547,3]
[372227021,1752557440667,-482.44,0.00020547,3]
[372227023,1752557440677,-3866.61,0.00020547,3]
[372227025,1752557440687,-3791.12,0.00020547,3]
[372227027,1752557440696,-469.65621088,0.00020547,3]
[372227029,1752557440705,-968.21,0.00020547,3]
[372227031,1752557440714,-460.0,0.00020547,3]
[372227034,1752557440723,-725.61,0.00020547,3]
[372227036,1752557440732,-460.0,0.00020547,3]
[372227038,1752557440742,-956.49,0.00020547,3]
[372227040,1752557440751,-460.0,0.00020547,3]
[372227042,1752557440760,-4207.38,0.00020547,3]
[372227044,1752557440770,-460.0,0.00020547,3]
[372227046,1752557440779,-460.0,0.00020547,3]
[372227048,1752557440789,-637.15,0.00020547,3]
[372227050,1752557440799,-460.0,0.00020547,3]
[372227052,1752557440808,-460.0,0.00020547,3]
[372227054,1752557440817,-566.35,0.00020547,3]
[372227056,1752557440827,-485.22,0.00020547,3]
[372227058,1752557440836,-460.0,0.00020547,3]
[372227060,1752557440845,-460.0,0.00020547,3]
[372227062,1752557440855,-214.517,0.00020687,2]
[372227064,1752557440864,-397.26525267,0.00020821,3]
[372227066,1752557440874,-460.0,0.00020821,3]
[372227068,1752557440883,-460.0,0.00020821,3]
[372227070,1752557440891,-460.0,0.00020821,3]
[372227072,1752557440901,-460.0,0.00020821,3]
[372227074,1752557440911,-460.0,0.00020821,3]
[372227076,1752557440927,-460.0,0.00020821,3]
[372227078,1752557440946,-460.0,0.00020821,3]
[372227080,1752557440956,-460.0,0.00020821,3]
[372227082,1752557440965,-460.0,0.00020821,3]
[372227084,1752557440975,-460.0,0.00020821,3]
[372227086,1752557440985,-460.0,0.00020821,3]
[372227088,1752557440994,-460.0,0.00020821,3]
[372227090,1752557441004,-460.0,0.00020821,3]
[372227092,1752557441016,-460.0,0.00020821,3]
[372227094,1752557441025,-460.0,0.00020821,3]
[372227096,1752557441035,-460.0,0.00020821,3]
[372227098,1752557441044,-460.0,0.00020821,3]
[372227100,1752557441053,-513.63282378,0.00020821,3]
[372227102,1752557441062,-460.0,0.00020821,3]
[372227104,1752557441072,-460.0,0.00020821,3]
[372227106,1752557441085,-460.0,0.00020821,3]
[372227108,1752557441095,-460.0,0.00020821,3]
[372227110,1752557441103,-460.0,0.00020821,3]
[372227122,1752557441113,-327.04965892,0.00020821,3]
[372227124,1752557441226,-460.0,0.00020821,3]
[372227127,1752557441235,-698.94,0.00020821,3]
[372227129,1752557441246,-469.91617521,0.00020821,3]
[372227131,1752557441255,-460.0,0.00020821,3]
[372227133,1752557441265,-460.0,0.00020821,3]
[372227135,1752557441281,-471.79073901,0.00020821,3]
[372227137,1752557441293,-466.87969275,0.00020821,3]
[372227140,1752557441304,-460.0,0.00020821,3]
[372227142,1752557441315,-460.0,0.00020821,3]
[372227143,1752557441324,-460.0,0.00020821,3]
[372227145,1752557441334,-460.0,0.00020821,3]
[372227147,1752557441343,-465.0746113,0.00020821,3]
[372227149,1752557441352,-460.0,0.00020821,3]
[372227151,1752557441361,-540.17,0.00020821,3]
[372227153,1752557441371,-460.0,0.00020821,3]
[372227155,1752557441380,-460.0,0.00020821,3]
[372227157,1752557441390,-460.0,0.00020821,3]
[372227159,1752557441399,-460.0,0.00020821,3]
[372227161,1752557441409,-472.28404962,0.00020821,3]
[372227163,1752557441419,-460.0,0.00020821,3]
[372227165,1752557441429,-340.25875989,0.00020821,3]
[372227167,1752557441438,-460.0,0.00020821,3]
[372227169,1752557441447,-460.0,0.00020821,3]
[372227171,1752557441457,-460.0,0.00020821,3]
[372227173,1752557441466,-568.34654922,0.00020821,3]
[372227175,1752557441476,-460.0,0.00020821,3]
[372227177,1752557441485,-423.67118016,0.00020821,3]
[372227179,1752557441497,-644.29,0.00020821,3]
[372227181,1752557441506,-151.0,0.00020821,2]
[372227183,1752557441515,-518.99,0.00020821,3]
[372227185,1752557441525,-460.0,0.00020821,3]
[372227187,1752557441534,-581.48997077,0.00020821,3]
[372227189,1752557441543,-470.36937149,0.00020821,3]
[372227191,1752557441552,-460.0,0.00020821,3]
[372227193,1752557441562,-698.47,0.00020821,3]
[372227195,1752557441571,-1177.51,0.00020821,3]
[372227197,1752557441580,-2012.44,0.00020821,3]
[372227199,1752557441591,-460.0,0.00020821,3]
[372227201,1752557441601,-460.0,0.00020821,3]
[372227203,1752557441610,-587.22547254,0.00020821,3]
[372227205,1752557441619,-151.57880195,0.00020821,3]
[372227207,1752557441628,-1389.25,0.00020821,3]
[372227209,1752557441638,-151.53698743,0.00020821,3]
[372227211,1752557441647,-159.23022373,0.00020821,3]
[372227213,1752557441657,-2902.91,0.00020821,3]
[372227215,1752557441667,-464.58839822,0.00020821,3]
[372227217,1752557441676,-460.0,0.00020821,3]
[372227219,1752557441686,-460.0,0.00020821,3]
[372227221,1752557441695,-460.0,0.00020821,3]
[372227223,1752557441704,-460.0,0.00020821,3]
[372227225,1752557441714,-460.0,0.00020821,3]
[372227227,1752557441724,-460.0,0.00020821,3]
[372227229,1752557441734,-460.0,0.00020821,3]
[372227231,1752557441743,-1900.9,0.00020821,3]
[372227233,1752557441752,-838.26,0.00020821,3]
[372227235,1752557441761,-673.92,0.00020821,3]
[372227237,1752557441772,-460.0,0.00020821,3]
[372227239,1752557441781,-460.0,0.00020821,3]
[372227241,1752557441790,-466.13,0.00020821,3]
[372227243,1752557441800,-460.0,0.00020821,3]
[372227245,1752557441809,-2222.62,0.00020821,3]
[372227247,1752557441818,-460.0,0.00020821,3]
[372227249,1752557441827,-460.0,0.00020821,3]
[372227251,1752557441836,-465.37287782,0.00020821,3]
[372227253,1752557441845,-460.0,0.00020821,3]
[372227255,1752557441855,-540.07,0.00020821,3]
[372227257,1752557441865,-560.67,0.00020821,3]
[372227259,1752557441875,-873.4,0.00020821,3]
[372227261,1752557441884,-460.0,0.00020821,3]
[372227263,1752557441894,-487.63,0.00020821,3]
[372227266,1752557441903,-816.62,0.00020821,3]
[372227267,1752557441913,-460.0,0.00020821,3]
[372227269,1752557441922,-2620.63,0.00020821,3]
[372227272,1752557441931,-460.0,0.00020821,3]
[372227274,1752557441941,-460.0,0.00020821,3]
[372227276,1752557441950,-460.0,0.00020821,3]
[372227278,1752557441959,-1536.82,0.00020821,3]
[372227280,1752557441968,-460.0,0.00020821,3]
[372227282,1752557441979,-460.0,0.00020821,3]
[372227284,1752557441988,-460.0,0.00020821,3]
[372227286,1752557441998,-460.0,0.00020821,3]
[372227288,1752557442009,-460.0,0.00020821,3]
[372227290,1752557442019,-460.0,0.00020821,3]
[372227292,1752557442028,-460.0,0.00020821,3]
[372227294,1752557442037,-476.27948072,0.00020821,3]
[372227296,1752557442047,-460.0,0.00020821,3]
[372227298,1752557442056,-460.0,0.00020821,3]
[372227300,1752557442066,-460.0,0.00020821,3]
[372227302,1752557442079,-460.0,0.00020821,3]
[372227304,1752557442088,-4493.21,0.00020821,3]
[372227306,1752557442097,-472.48,0.00020821,3]
[372227308,1752557442107,-986.63,0.00020821,3]
[372227310,1752557442118,-1262.48,0.00020821,3]
[372227312,1752557442128,-487.74,0.00020821,3]
[372227314,1752557442137,-460.0,0.00020821,3]
[372227316,1752557442147,-482.44,0.00020821,3]
[372227318,1752557442156,-3866.61,0.00020821,3]
[372227320,1752557442166,-3791.12,0.00020821,3]
[372227322,1752557442175,-968.21,0.00020821,3]
[372227324,1752557442184,-725.61,0.00020821,3]
[372227326,1752557442194,-515.79263716,0.00020821,3]
[372227328,1752557442203,-956.49,0.00020821,3]
[372227330,1752557442213,-460.0,0.00020821,3]
[372227332,1752557442222,-4207.38,0.00020821,3]
[372227334,1752557442231,-460.0,0.00020821,3]
[372227336,1752557442241,-637.15,0.00020821,3]
[372227338,1752557442250,-151.0,0.00020821,3]
[372227340,1752557442260,-460.0,0.00020821,3]
[372227342,1752557442269,-566.35,0.00020821,3]
[372227344,1752557442278,-485.22,0.00020821,3]
[372227346,1752557442287,-460.0,0.00020821,3]